[Event "11th LCC Super Blitz 2019"]
[Site "London"]
[Date "2019.12.08"]
[Round "9.4"]
[White "Tanmay Chopra"]
[Black "Stepanyan, Henrik"]
[Result "1-0"]
[ECO "D40"]
[WhiteElo "2100"]
[BlackElo "2193"]
[Annotator "NA"]
[PlyCount "81"]
[EventDate "2019.12.08"]
[EventType "swiss"]
[EventCountry "ENG"]
[SourceTitle "playchess.com"]
[Source "ChessBase"]
[SourceQuality "1"]
[TimeControl "180+2"]

1. d4 {[%emt 0:00:00]} d5 {[%emt 0:00:00]} 2. c4 {[%emt 0:00:00]} e6 {[%emt 0:00:00]} 3. Nc3 {[%emt 0:00:01]} c5 {[%emt 0:00:00]} 4. e3 {[%emt 0:00:04]} Nc6 {[%emt 0:00:00]} 5. Nf3 {[%emt 0:00:01]} Nf6 {[%emt 0:00:00]} 6. a3 {[%emt 0:00:00]} a6 {[%emt 0:00:07]} 7. dxc5 {[%emt 0:00:02]} Bxc5 {[%emt 0:00:01]} 8. b4 {[%emt 0:00:01]} Be7 {[%emt 0:00:04]} 9. cxd5 {[%emt 0:00:03]} exd5 {[%emt 0:00:01]} 10. Bb2 {[%emt 0:00:01]} O-O {[%emt 0:00:02]} 11. Be2 {[%emt 0:00:04]} Be6 {[%emt 0:00:17]} 12. Nd4 {[%emt 0:00:07]} Nxd4 {[%emt 0:00:09]} 13. Qxd4 {[%emt 0:00:02]} Ne8 {[%emt 0:00:09]} 14. Rd1 {[%emt 0:00:06]} Bf6 {[%emt 0:00:04]} 15. Qd2 {[%emt 0:00:01]} Nc7 {[%emt 0:00:21]} 16. Bf3 {[%emt 0:00:03]} Rc8 {[%emt 0:00:17]} 17. O-O {[%emt 0:00:06]} Bxc3 {[%emt 0:00:18]} 18. Qxc3 {[%emt 0:00:02]} Qg5 {[%emt 0:00:00]} 19. h4 {[%emt 0:00:15]} Qh6 {[%emt 0:00:16]} 20. Qe5 {[%emt 0:00:04]} Rfd8 {[%emt 0:00:17]} 21. Rd2 {[%emt 0:00:17]} Nb5 {[%emt 0:00:13]} 22. Rfd1 {[%emt 0:00:06]} Nd6 {[%emt 0:00:15]} 23. Bxd5 {[%emt 0:00:14]} Nc4 {[%emt 0:00:01]} 24. Bxc4 {[%emt 0:00:07]} Rxd2 {[%emt 0:00:01]} 25. Rxd2 {[%emt 0:00:01]} Bxc4 {[%emt 0:00:02]} 26. Qc7 {[%emt 0:00:05]} Re8 {[%emt 0:00:26]} 27. Qxc4 {[%emt 0:00:04]} Qg6 {[%emt 0:00:00]} 28. Qd4 {[%emt 0:00:13]} f6 {[%emt 0:00:09]} 29. h5 {[%emt 0:00:06]} Qb1+ {[%emt 0:00:05]} 30. Kh2 {[%emt 0:00:01]} b5 {[%emt 0:00:18]} 31. Qd7 {[%emt 0:00:09]} Rf8 {[%emt 0:00:02]} 32. Qd3 {[%emt 0:00:05]} Qa2 {[%emt 0:00:03]} 33. h6 {[%emt 0:00:03]} Qf7 {[%emt 0:00:03]} 34. hxg7 {[%emt 0:00:04]} Qh5+ {[%emt 0:00:01]} 35. Kg1 {[%emt 0:00:01]} Kxg7 {[%emt 0:00:01]} 36. Qd5 {[%emt 0:00:11]} Qg6 {[%emt 0:00:03]} 37. Qf3 {[%emt 0:00:07]} Qb1+ {[%emt 0:00:02]} 38. Kh2 {[%emt 0:00:01]} Rf7 {[%emt 0:00:02]} 39. Qg3+ {[%emt 0:00:05]} Kf8 {[%emt 0:00:03]} 40. Rd8+ {[%emt 0:00:02]} Ke7 {[%emt 0:00:00]} 41. Qd6# {[%emt 0:00:00]} 1-0

[Event "11th LCC Super Blitz 2019"]
[Site "London"]
[Date "2019.12.08"]
[Round "9.4"]
[White "Onslow, Teddy"]
[Black "Beinoras, Mindaugas"]
[Result "0-1"]
[ECO "D00"]
[WhiteElo "1647"]
[BlackElo "2401"]
[Annotator "NA"]
[PlyCount "58"]
[EventDate "2019.12.08"]
[EventType "swiss"]
[EventCountry "ENG"]
[SourceTitle "playchess.com"]
[Source "ChessBase"]
[SourceQuality "1"]
[TimeControl "180+2"]

1. d4 {[%emt 0:00:00]} d5 {[%emt 0:00:00]} 2. Bf4 {[%emt 0:00:00]} e6 {[%emt 0:00:02]} 3. e3 {[%emt 0:00:03]} Bd6 {[%emt 0:00:02]} 4. Bxd6 {[%emt 0:00:01]} cxd6 {[%emt 0:00:02]} 5. Nf3 {[%emt 0:00:03]} Qb6 {[%emt 0:00:02]} 6. Nbd2 {[%emt 0:00:06]} Qxb2 {[%emt 0:00:07]} 7. Rb1 {[%emt 0:00:01]} Qc3 {[%emt 0:00:08]} 8. Bb5+ {[%emt 0:00:04]} Nc6 {[%emt 0:00:03]} 9. O-O {[%emt 0:00:06]} Nf6 {[%emt 0:00:03]} 10. Rb3 {[%emt 0:00:55]} Qa5 {[%emt 0:00:01]} 11. c4 {[%emt 0:00:06]} O-O {[%emt 0:00:28]} 12. Bxc6 {[%emt 0:00:14]} bxc6 {[%emt 0:00:03]} 13. Qc2 {[%emt 0:00:01]} Ba6 {[%emt 0:00:06]} 14. Rfb1 {[%emt 0:00:20]} Rac8 {[%emt 0:00:08]} 15. c5 {[%emt 0:00:08]} dxc5 {[%emt 0:00:10]} 16. dxc5 Nd7 {[%emt 0:00:06]} 17. Rc3 {[%emt 0:00:29]} h6 {[%emt 0:00:05]} 18. Nd4 {[%emt 0:00:03]} Rfe8 {[%emt 0:00:31]} 19. h3 {[%emt 0:00:27]} g6 {[%emt 0:00:11]} 20. a4 {[%emt 0:00:03]} e5 {[%emt 0:00:04]} 21. N4f3 {[%emt 0:00:02]} e4 {[%emt 0:00:05]} 22. Nd4 {[%emt 0:00:04]} Bd3 {[%emt 0:00:03]} 23. Rxd3 {[%emt 0:00:14]} exd3 {[%emt 0:00:01]} 24. Qxd3 {[%emt 0:00:01]} Nxc5 {[%emt 0:00:05]} 25. Qc2 {[%emt 0:00:03]} Ne6 {[%emt 0:00:08]} 26. N2b3 {[%emt 0:00:07]} Qxa4 {[%emt 0:00:08]} 27. Nxe6 {[%emt 0:00:05]} Rxe6 {[%emt 0:00:06]} 28. Ra1 {[%emt 0:00:03]} Qc4 {[%emt 0:00:03]} 29. Qb2 {[%emt 0:00:04]} Rb8 {[%emt 0:00:04]} 0-1

[Event "11th LCC Super Blitz 2019"]
[Site "London"]
[Date "2019.12.08"]
[Round "9.5"]
[White "Van Zyl-Rudd, Jack"]
[Black "Petrov, Vladimir Sergeev"]
[Result "0-1"]
[ECO "E32"]
[WhiteElo "2290"]
[BlackElo "2355"]
[Annotator "NA"]
[PlyCount "86"]
[EventDate "2019.12.08"]
[EventType "swiss"]
[EventCountry "ENG"]
[SourceTitle "playchess.com"]
[Source "ChessBase"]
[SourceQuality "1"]
[TimeControl "180+2"]

1. d4 {[%emt 0:00:00]} Nf6 {[%emt 0:00:00]} 2. c4 {[%emt 0:00:01]} e6 {[%emt 0:00:00]} 3. Nc3 {[%emt 0:00:01]} Bb4 {[%emt 0:00:00]} 4. Qc2 {[%emt 0:00:01]} O-O {[%emt 0:00:01]} 5. e4 {[%emt 0:00:01]} d5 {[%emt 0:00:01]} 6. e5 {[%emt 0:00:01]} Ne4 {[%emt 0:00:02]} 7. Bd3 {[%emt 0:00:02]} c5 {[%emt 0:00:01]} 8. Nf3 {[%emt 0:00:02]} cxd4 {[%emt 0:00:22]} 9. Nxd4 {[%emt 0:00:02]} Nc6 {[%emt 0:00:11]} 10. Nxc6 {[%emt 0:00:02]} bxc6 {[%emt 0:00:01]} 11. Bxe4 {[%emt 0:00:01]} dxe4 {[%emt 0:00:04]} 12. a3 {[%emt 0:00:01]} Qa5 {[%emt 0:01:02]} 13. Bd2 {[%emt 0:00:02]} Rb8 {[%emt 0:00:05]} 14. O-O {[%emt 0:00:18]} Be7 {[%emt 0:00:02]} 15. Nd5 {[%emt 0:00:46]} Qd8 {[%emt 0:00:02]} 16. Nxe7+ {[%emt 0:00:06]} Qxe7 {[%emt 0:00:01]} 17. Bc3 {[%emt 0:00:10]} c5 {[%emt 0:00:18]} 18. Qxe4 {[%emt 0:00:04]} Bb7 {[%emt 0:00:01]} 19. Qe2 {[%emt 0:00:05]} Ba8 {[%emt 0:00:16]} 20. Rad1 {[%emt 0:00:08]} Rbd8 {[%emt 0:00:07]} 21. Ba5 {[%emt 0:00:25]} Rd4 {[%emt 0:00:14]} 22. Rxd4 {[%emt 0:00:06]} cxd4 {[%emt 0:00:02]} 23. Bb4 {[%emt 0:00:01]} Qb7 {[%emt 0:00:01]} 24. f3 {[%emt 0:00:06]} Rd8 {[%emt 0:00:06]} 25. Rd1 {[%emt 0:00:02]} Qb6 {[%emt 0:00:27]} 26. Bd6 {[%emt 0:00:11]} d3+ {[%emt 0:00:08]} 27. Qf2 {[%emt 0:00:01]} Qb3 {[%emt 0:00:04]} 28. Qd2 {[%emt 0:00:14]} Qxc4 {[%emt 0:00:03]} 29. Qxd3 {[%emt 0:00:02]} Qh4 {[%emt 0:00:04]} 30. b4 {[%emt 0:00:10]} Rc8 {[%emt 0:00:06]} 31. Qd4 {[%emt 0:00:17]} Qg5 {[%emt 0:00:05]} 32. Qd2 {[%emt 0:00:16]} Qh4 {[%emt 0:00:02]} 33. Qf2 {[%emt 0:00:05]} Qg5 {[%emt 0:00:02]} 34. h3 {[%emt 0:00:07]} h5 {[%emt 0:00:01]} 35. Qd2 {[%emt 0:00:03]} Qh4 {[%emt 0:00:02]} 36. Qf2 {[%emt 0:00:01]} Qf4 {[%emt 0:00:02]} 37. Qd4 {[%emt 0:00:04]} Qg5 {[%emt 0:00:03]} 38. Qf2 {[%emt 0:00:04]} h4 {[%emt 0:00:02]} 39. Kh2 {[%emt 0:00:03]} Rc3 {[%emt 0:00:02]} 40. Bc5 {[%emt 0:00:04]} Bd5 {[%emt 0:00:01]} 41. Bd4 {[%emt 0:00:01]} Rxa3 {[%emt 0:00:02]} 42. Bxa7 {[%emt 0:00:01]} Ra2 {[%emt 0:00:01]} 43. Qf1 {[%emt 0:00:03]} Rxa7 {[%emt 0:00:01]} 0-1

[Event "11th LCC Super Blitz 2019"]
[Site "London"]
[Date "2019.12.08"]
[Round "9.5"]
[White "Roberson, Peter T"]
[Black "Eames, Robert S"]
[Result "1-0"]
[ECO "C72"]
[WhiteElo "2282"]
[BlackElo "2166"]
[Annotator "NA"]
[PlyCount "63"]
[EventDate "2019.12.08"]
[EventType "swiss"]
[EventCountry "ENG"]
[SourceTitle "playchess.com"]
[Source "ChessBase"]
[SourceQuality "1"]
[TimeControl "180+2"]

1. e4 {[%emt 0:00:00]} e5 {[%emt 0:00:00]} 2. Nf3 {[%emt 0:00:00]} Nc6 {[%emt 0:00:02]} 3. Bb5 a6 {[%emt 0:00:00]} 4. Ba4 {[%emt 0:00:01]} d6 {[%emt 0:00:00]} 5. O-O {[%emt 0:00:04]} Bg4 {[%emt 0:00:01]} 6. h3 {[%emt 0:00:04]} h5 {[%emt 0:00:02]} 7. Bxc6+ {[%emt 0:00:01]} bxc6 {[%emt 0:00:04]} 8. d4 {[%emt 0:00:01]} Bxf3 {[%emt 0:00:08]} 9. Qxf3 {[%emt 0:00:02]} exd4 {[%emt 0:00:01]} 10. Re1 {[%emt 0:00:02]} Ne7 {[%emt 0:00:17]} 11. Bg5 {[%emt 0:00:18]} f6 {[%emt 0:00:10]} 12. Bd2 {[%emt 0:00:08]} Qd7 {[%emt 0:00:03]} 13. c3 {[%emt 0:00:02]} dxc3 14. Nxc3 {[%emt 0:00:01]} Ng6 {[%emt 0:00:44]} 15. Rad1 {[%emt 0:00:16]} Be7 {[%emt 0:00:03]} 16. b3 {[%emt 0:00:09]} O-O-O {[%emt 0:00:11]} 17. Na4 {[%emt 0:00:09]} Ne5 {[%emt 0:00:28]} 18. Qe2 {[%emt 0:00:01]} Kb7 {[%emt 0:00:03]} 19. Ba5 {[%emt 0:00:03]} Qc8 {[%emt 0:00:10]} 20. f4 {[%emt 0:00:28]} Nd7 {[%emt 0:00:01]} 21. Rd4 {[%emt 0:00:14]} c5 {[%emt 0:00:13]} 22. Rd2 {[%emt 0:00:02]} g5 {[%emt 0:00:13]} 23. b4 {[%emt 0:00:05]} cxb4 {[%emt 0:00:15]} 24. Rb1 {[%emt 0:00:00]} c5 {[%emt 0:00:04]} 25. a3 {[%emt 0:00:04]} Qc6 {[%emt 0:00:19]} 26. Nc3 {[%emt 0:00:23]} Rc8 {[%emt 0:00:07]} 27. axb4 {[%emt 0:00:02]} c4 {[%emt 0:00:02]} 28. Nd5 {[%emt 0:00:01]} Rhe8 {[%emt 0:00:06]} 29. Kh1 {[%emt 0:00:28]} gxf4 {[%emt 0:00:02]} 30. b5 {[%emt 0:00:01]} axb5 {[%emt 0:00:01]} 31. Rdb2 {[%emt 0:00:00]} Ka6 {[%emt 0:00:08]} 32. Bc7 {[%emt 0:00:19]} 1-0

[Event "11th LCC Super Blitz 2019"]
[Site "London"]
[Date "2019.12.08"]
[Round "9.5"]
[White "Stamatopoulos, Apostolos"]
[Black "Orlovska, Madara"]
[Result "1-0"]
[ECO "E61"]
[WhiteElo "1782"]
[BlackElo "2072"]
[Annotator "NA"]
[PlyCount "137"]
[EventDate "2019.12.08"]
[EventType "swiss"]
[EventCountry "ENG"]
[SourceTitle "playchess.com"]
[Source "ChessBase"]
[SourceQuality "1"]
[TimeControl "180+2"]

1. d4 {[%emt 0:00:00]} Nf6 {[%emt 0:00:00]} 2. Nf3 {[%emt 0:00:00]} g6 {[%emt 0:00:00]} 3. c4 {[%emt 0:00:00]} Bg7 {[%emt 0:00:00]} 4. Nc3 {[%emt 0:00:00]} d6 {[%emt 0:00:01]} 5. h3 {[%emt 0:00:03]} Nc6 {[%emt 0:00:03]} 6. Bf4 {[%emt 0:00:04]} O-O {[%emt 0:00:06]} 7. e3 {[%emt 0:00:01]} Nd7 {[%emt 0:00:01]} 8. Be2 {[%emt 0:00:09]} e5 {[%emt 0:00:01]} 9. Bh2 {[%emt 0:00:01]} f5 {[%emt 0:00:02]} 10. O-O {[%emt 0:00:06]} f4 {[%emt 0:00:09]} 11. a3 {[%emt 0:00:22]} h6 {[%emt 0:00:11]} 12. b4 {[%emt 0:00:02]} exd4 {[%emt 0:00:16]} 13. exd4 {[%emt 0:00:03]} Ne7 {[%emt 0:00:14]} 14. Rc1 {[%emt 0:00:10]} Nb6 {[%emt 0:00:26]} 15. d5 {[%emt 0:00:37]} Nd7 {[%emt 0:00:13]} 16. Nd4 {[%emt 0:00:41]} Ne5 {[%emt 0:00:02]} 17. Nf3 {[%emt 0:00:26]} g5 {[%emt 0:00:06]} 18. c5 {[%emt 0:00:04]} N7g6 {[%emt 0:00:17]} 19. Ne4 {[%emt 0:00:16]} Nxf3+ {[%emt 0:00:06]} 20. Bxf3 {[%emt 0:00:01]} Ne5 {[%emt 0:00:02]} 21. Qb3 {[%emt 0:00:14]} a5 {[%emt 0:00:07]} 22. Rfe1 {[%emt 0:00:03]} a4 {[%emt 0:00:02]} 23. Qd1 {[%emt 0:00:03]} h5 {[%emt 0:00:11]} 24. Bxh5 {[%emt 0:00:04]} f3 {[%emt 0:00:00]} 25. Bxf3 {[%emt 0:00:10]} Nxf3+ {[%emt 0:00:02]} 26. gxf3 {[%emt 0:00:01]} Bxh3 {[%emt 0:00:01]} 27. Qd2 {[%emt 0:00:05]} Bh6 {[%emt 0:00:15]} 28. Qd3 {[%emt 0:00:04]} Bf5 {[%emt 0:00:03]} 29. Qd4 {[%emt 0:00:02]} Bg7 {[%emt 0:00:12]} 30. Qe3 {[%emt 0:00:00]} g4 {[%emt 0:00:03]} 31. fxg4 Bxg4 {[%emt 0:00:01]} 32. Qg5 {[%emt 0:00:04]} Qxg5 {[%emt 0:00:05]} 33. Nxg5 {[%emt 0:00:01]} Bh6 {[%emt 0:00:02]} 34. f4 {[%emt 0:00:02]} Rf5 {[%emt 0:00:06]} 35. Re6 {[%emt 0:00:03]} Bxg5 {[%emt 0:00:02]} 36. Rg6+ {[%emt 0:00:03]} Kf7 {[%emt 0:00:04]} 37. Rxg5 {[%emt 0:00:01]} Rxg5 {[%emt 0:00:04]} 38. fxg5 {[%emt 0:00:01]} Kg6 {[%emt 0:00:01]} 39. Bf4 {[%emt 0:00:01]} Kf5 {[%emt 0:00:01]} 40. Bd2 {[%emt 0:00:02]} Ke4 {[%emt 0:00:01]} 41. cxd6 {[%emt 0:00:02]} cxd6 {[%emt 0:00:01]} 42. Rc7 {[%emt 0:00:01]} b5 {[%emt 0:00:01]} 43. Rb7 {[%emt 0:00:01]} Kd3 {[%emt 0:00:06]} 44. Bf4 {[%emt 0:00:03]} Kc4 {[%emt 0:00:01]} 45. Bxd6 {[%emt 0:00:01]} Rd8 {[%emt 0:00:01]} 46. Rb6 {[%emt 0:00:03]} Kxd5 {[%emt 0:00:02]} 47. Be7 {[%emt 0:00:02]} Re8 {[%emt 0:00:01]} 48. Rxb5+ {[%emt 0:00:01]} Kc6 {[%emt 0:00:03]} 49. Rc5+ {[%emt 0:00:01]} Kb6 {[%emt 0:00:01]} 50. Bf6 {[%emt 0:00:05]} Re1+ {[%emt 0:00:01]} 51. Kf2 {[%emt 0:00:02]} Re2+ {[%emt 0:00:01]} 52. Kg3 {[%emt 0:00:01]} Bh5 {[%emt 0:00:01]} 53. Kh4 {[%emt 0:00:02]} Bg6 {[%emt 0:00:01]} 54. Rc3 {[%emt 0:00:04]} Rh2+ {[%emt 0:00:01]} 55. Kg3 {[%emt 0:00:02]} Rh1 {[%emt 0:00:01]} 56. Kf4 {[%emt 0:00:01]} Rf1+ {[%emt 0:00:01]} 57. Ke5 {[%emt 0:00:01]} Rf5+ {[%emt 0:00:02]} 58. Kd6 {[%emt 0:00:01]} Rf1 {[%emt 0:00:05]} 59. Ke7 {[%emt 0:00:02]} Rb1 {[%emt 0:00:01]} 60. Kf8 {[%emt 0:00:02]} Rb3 {[%emt 0:00:03]} 61. Rxb3 {[%emt 0:00:01]} axb3 {[%emt 0:00:00]} 62. Kg7 {[%emt 0:00:02]} Be4 {[%emt 0:00:03]} 63. g6 {[%emt 0:00:01]} Kb5 {[%emt 0:00:01]} 64. Bb2 {[%emt 0:00:01]} Kc4 {[%emt 0:00:00]} 65. Kf7 {[%emt 0:00:03]} Kd3 {[%emt 0:00:00]} 66. g7 {[%emt 0:00:01]} Kc2 {[%emt 0:00:02]} 67. Be5 {[%emt 0:00:03]} Bd5+ {[%emt 0:00:05]} 68. Kf8 {[%emt 0:00:03]} b2 {[%emt 0:00:01]} 69. Bxb2 {[%emt 0:00:01]} 1-0

[Event "11th LCC Super Blitz 2019"]
[Site "London"]
[Date "2019.12.08"]
[Round "9.6"]
[White "Pappelis, Dimitrios"]
[Black "Mortazavi, Ali"]
[Result "0-1"]
[ECO "A26"]
[WhiteElo "2160"]
[BlackElo "2333"]
[Annotator "NA"]
[PlyCount "89"]
[EventDate "2019.12.08"]
[EventType "swiss"]
[EventCountry "ENG"]
[SourceTitle "playchess.com"]
[Source "ChessBase"]
[SourceQuality "1"]
[TimeControl "180+2"]

1. c4 {[%emt 0:00:00]} Nf6 {[%emt 0:00:00]} 2. Nc3 {[%emt 0:00:00]} g6 {[%emt 0:00:00]} 3. g3 {[%emt 0:00:01]} Bg7 {[%emt 0:00:00]} 4. Bg2 {[%emt 0:00:01]} O-O {[%emt 0:00:01]} 5. Nf3 {[%emt 0:00:00]} d6 {[%emt 0:00:00]} 6. O-O {[%emt 0:00:02]} e5 {[%emt 0:00:00]} 7. d3 {[%emt 0:00:00]} h6 {[%emt 0:00:02]} 8. Rb1 {[%emt 0:00:01]} Nc6 {[%emt 0:00:00]} 9. b4 {[%emt 0:00:02]} Be6 {[%emt 0:00:01]} 10. b5 {[%emt 0:00:06]} Ne7 {[%emt 0:00:01]} 11. a4 {[%emt 0:00:07]} Qd7 {[%emt 0:00:00]} 12. Ba3 {[%emt 0:00:01]} Bh3 {[%emt 0:00:08]} 13. Qc2 {[%emt 0:00:11]} Bxg2 14. Kxg2 b6 15. Rfd1 {[%emt 0:00:14]} Nh5 {[%emt 0:00:15]} 16. d4 {[%emt 0:00:11]} exd4 17. Nxd4 {[%emt 0:00:01]} Rae8 {[%emt 0:00:12]} 18. h3 {[%emt 0:00:15]} Kh8 {[%emt 0:00:28]} 19. Nd5 {[%emt 0:00:07]} Ng8 {[%emt 0:00:00]} 20. Bb2 {[%emt 0:00:05]} f5 {[%emt 0:00:07]} 21. Nf3 {[%emt 0:00:08]} Nhf6 {[%emt 0:00:20]} 22. Rd2 {[%emt 0:00:19]} Ne4 {[%emt 0:00:02]} 23. Bxg7+ {[%emt 0:00:07]} Qxg7 {[%emt 0:00:01]} 24. Rd4 {[%emt 0:00:18]} g5 {[%emt 0:00:13]} 25. Rbd1 {[%emt 0:00:26]} Rf7 {[%emt 0:00:02]} 26. Qb2 {[%emt 0:00:22]} Nc5 {[%emt 0:00:05]} 27. R4d2 {[%emt 0:00:05]} a5 {[%emt 0:00:19]} 28. bxa6 {[%emt 0:00:06]} Nxa6 {[%emt 0:00:01]} 29. Qxg7+ {[%emt 0:00:05]} Kxg7 {[%emt 0:00:01]} 30. e3 {[%emt 0:00:07]} Nc5 31. Ra2 {[%emt 0:00:08]} Ra8 {[%emt 0:00:11]} 32. Nd4 {[%emt 0:00:00]} Nf6 {[%emt 0:00:17]} 33. Nxf5+ {[%emt 0:00:03]} Kg6 34. Nfe7+ {[%emt 0:00:09]} Kg7 {[%emt 0:00:02]} 35. Nf5+ {[%emt 0:00:01]} Kh7 {[%emt 0:00:04]} 36. Nd4 {[%emt 0:00:06]} Nfe4 {[%emt 0:00:11]} 37. f4 {[%emt 0:00:07]} gxf4 {[%emt 0:00:04]} 38. exf4 {[%emt 0:00:03]} Rg8 {[%emt 0:00:03]} 39. Ra3 {[%emt 0:00:05]} c6 {[%emt 0:00:08]} 40. Nxc6 {[%emt 0:00:04]} h5 {[%emt 0:00:06]} 41. Kh2 {[%emt 0:00:03]} Rfg7 {[%emt 0:00:13]} 42. Rg1 {[%emt 0:00:03]} Nd2 {[%emt 0:00:04]} 43. Nf6+ {[%emt 0:00:02]} Kh8 {[%emt 0:00:01]} 44. Nxg8 {[%emt 0:00:01]} Kxg8 {[%emt 0:00:08]} 45. Rc3 {[%emt 0:00:05]} 0-1

[Event "11th LCC Super Blitz 2019"]
[Site "London"]
[Date "2019.12.08"]
[Round "9.6"]
[White "Gudenas, Motiejus"]
[Black "Srivastava, Arnav"]
[Result "0-1"]
[ECO "C50"]
[WhiteElo "1993"]
[BlackElo "1728"]
[Annotator "NA"]
[PlyCount "59"]
[EventDate "2019.12.08"]
[EventType "swiss"]
[EventCountry "ENG"]
[SourceTitle "playchess.com"]
[Source "ChessBase"]
[SourceQuality "1"]
[TimeControl "180+2"]

1. e4 {[%emt 0:00:04]} e5 {[%emt 0:00:00]} 2. Nf3 {[%emt 0:00:01]} Nc6 {[%emt 0:00:00]} 3. d4 {[%emt 0:00:04]} exd4 {[%emt 0:00:00]} 4. Bc4 {[%emt 0:00:01]} d6 {[%emt 0:00:11]} 5. Nxd4 {[%emt 0:00:01]} Nf6 {[%emt 0:00:04]} 6. Nc3 {[%emt 0:00:02]} Be7 {[%emt 0:00:03]} 7. O-O {[%emt 0:00:02]} O-O {[%emt 0:00:01]} 8. Nxc6 {[%emt 0:00:08]} bxc6 {[%emt 0:00:01]} 9. Bg5 {[%emt 0:00:06]} h6 {[%emt 0:00:02]} 10. Bh4 {[%emt 0:00:01]} Be6 {[%emt 0:00:12]} 11. Bb3 {[%emt 0:00:23]} Qd7 {[%emt 0:00:09]} 12. Re1 {[%emt 0:00:25]} Rad8 {[%emt 0:00:09]} 13. Qd4 {[%emt 0:00:15]} d5 {[%emt 0:00:48]} 14. Qxa7 {[%emt 0:00:30]} dxe4 {[%emt 0:00:39]} 15. Qe3 {[%emt 0:00:21]} Bxb3 {[%emt 0:00:22]} 16. axb3 {[%emt 0:00:04]} Nd5 {[%emt 0:00:01]} 17. Nxd5 {[%emt 0:00:06]} cxd5 {[%emt 0:00:01]} 18. Bxe7 {[%emt 0:00:10]} Qxe7 {[%emt 0:00:00]} 19. c3 {[%emt 0:00:01]} Qe5 {[%emt 0:00:02]} 20. Ra4 {[%emt 0:00:06]} f5 {[%emt 0:00:01]} 21. g3 {[%emt 0:00:03]} g5 {[%emt 0:00:01]} 22. Ra6 {[%emt 0:00:25]} Rd6 {[%emt 0:00:04]} 23. Rxd6 {[%emt 0:00:03]} Qxd6 {[%emt 0:00:02]} 24. Qd4 {[%emt 0:00:04]} Qf6 {[%emt 0:00:01]} 25. Qxd5+ {[%emt 0:00:04]} Kg7 {[%emt 0:00:01]} 26. Qd7+ {[%emt 0:00:05]} Rf7 {[%emt 0:00:00]} 27. Qd4 {[%emt 0:00:02]} Qxd4 {[%emt 0:00:06]} 28. cxd4 {[%emt 0:00:01]} Rd7 {[%emt 0:00:01]} 29. Rd1 {[%emt 0:00:02]} c5 {[%emt 0:00:00]} 30. d5 {[%emt 0:00:04]} 0-1

[Event "11th LCC Super Blitz 2019"]
[Site "London"]
[Date "2019.12.08"]
[Round "9.6"]
[White "Iyengar, Ilya"]
[Black "Cox, John J"]
[Result "0-1"]
[ECO "A81"]
[WhiteElo "1984"]
[BlackElo "2346"]
[Annotator "NA"]
[PlyCount "98"]
[EventDate "2019.12.08"]
[EventType "swiss"]
[EventCountry "ENG"]
[SourceTitle "playchess.com"]
[Source "ChessBase"]
[SourceQuality "1"]
[TimeControl "180+2"]

1. d4 {[%emt 0:00:00]} f5 {[%emt 0:00:00]} 2. g3 {[%emt 0:00:02]} Nf6 {[%emt 0:00:00]} 3. Bg2 {[%emt 0:00:01]} d6 {[%emt 0:00:00]} 4. Nf3 {[%emt 0:00:06]} c6 {[%emt 0:00:01]} 5. c4 {[%emt 0:00:01]} Qc7 {[%emt 0:00:00]} 6. O-O {[%emt 0:00:03]} e5 {[%emt 0:00:01]} 7. dxe5 {[%emt 0:00:06]} dxe5 {[%emt 0:00:00]} 8. b3 {[%emt 0:00:04]} Be7 {[%emt 0:00:06]} 9. Bb2 {[%emt 0:00:02]} Nbd7 {[%emt 0:00:01]} 10. Nc3 {[%emt 0:00:10]} O-O {[%emt 0:00:02]} 11. e4 {[%emt 0:00:29]} f4 {[%emt 0:00:08]} 12. gxf4 {[%emt 0:00:33]} exf4 {[%emt 0:00:02]} 13. Ng5 {[%emt 0:00:02]} Ne5 {[%emt 0:00:08]} 14. f3 {[%emt 0:00:09]} h6 {[%emt 0:00:08]} 15. Nh3 {[%emt 0:00:03]} g5 {[%emt 0:00:07]} 16. Nf2 {[%emt 0:00:03]} Be6 {[%emt 0:00:02]} 17. Qe2 {[%emt 0:00:05]} Rad8 {[%emt 0:00:04]} 18. Rfd1 {[%emt 0:00:02]} Bc5 {[%emt 0:00:02]} 19. Kf1 {[%emt 0:00:24]} g4 {[%emt 0:00:11]} 20. Nd3 {[%emt 0:00:22]} gxf3 {[%emt 0:00:08]} 21. Bxf3 {[%emt 0:00:03]} Bh3+ {[%emt 0:00:02]} 22. Ke1 {[%emt 0:00:03]} Nxf3+ {[%emt 0:00:43]} 23. Qxf3 {[%emt 0:00:02]} Bg4 {[%emt 0:00:01]} 24. Qg2 {[%emt 0:00:13]} Bd4 {[%emt 0:00:09]} 25. Nf2 {[%emt 0:00:29]} f3 {[%emt 0:00:37]} 26. Qg3 {[%emt 0:00:05]} Be5 {[%emt 0:00:05]} 27. Qh4 {[%emt 0:00:03]} h5 {[%emt 0:00:05]} 28. Nb5 {[%emt 0:00:06]} cxb5 {[%emt 0:00:07]} 29. Qg5+ {[%emt 0:00:02]} Qg7 {[%emt 0:00:37]} 30. Qxg7+ {[%emt 0:00:01]} Kxg7 {[%emt 0:00:01]} 31. Bxe5 {[%emt 0:00:02]} Rde8 {[%emt 0:00:03]} 32. Bxf6+ {[%emt 0:00:01]} Kxf6 {[%emt 0:00:01]} 33. cxb5 {[%emt 0:00:03]} Re7 {[%emt 0:00:05]} 34. Rd6+ {[%emt 0:00:02]} Ke5 {[%emt 0:00:02]} 35. Rad1 {[%emt 0:00:01]} Be6 {[%emt 0:00:02]} 36. R1d3 {[%emt 0:00:03]} Rff7 {[%emt 0:00:05]} 37. Kd2 {[%emt 0:00:02]} Kf4 {[%emt 0:00:02]} 38. Nd1 {[%emt 0:00:03]} Rg7 {[%emt 0:00:01]} 39. Kc3 {[%emt 0:00:01]} Rg2 {[%emt 0:00:02]} 40. Rd2 {[%emt 0:00:01]} Re8 {[%emt 0:00:03]} 41. R6d4 {[%emt 0:00:02]} Rxd2 {[%emt 0:00:02]} 42. Rxd2 {[%emt 0:00:01]} Rg8 {[%emt 0:00:01]} 43. Kd3 {[%emt 0:00:01]} Rg2 {[%emt 0:00:02]} 44. Rf2 {[%emt 0:00:02]} Bd7 {[%emt 0:00:03]} 45. a4 {[%emt 0:00:01]} Be6 {[%emt 0:00:01]} 46. a5 {[%emt 0:00:03]} Bxb3 {[%emt 0:00:01]} 47. b6 {[%emt 0:00:02]} axb6 {[%emt 0:00:01]} 48. axb6 {[%emt 0:00:01]} Bxd1 {[%emt 0:00:01]} 49. Rf1 {[%emt 0:00:05]} Be2+ {[%emt 0:00:01]} 0-1